bitfinex/quotes_ETHUSD_20260131
["timestamp","ask_amount","ask_price","bid_price","bid_amount"]
[1769898510645,0.01267828,2417.5,2416.6,1.36633684]
[1769898510646,14.00574134,2417.5,2416.6,1.36633684]
[1769898510849,14.00574134,2417.5,2416.5,0.868]
[1769898511018,14.00574134,2417.5,2416.6,1.03451129]
[1769898511223,15.02720871,2417.5,2416.6,1.03451129]
[1769898511724,13.99306306,2417.5,2416.6,1.03451129]
[1769898511926,13.99306306,2417.5,2416.7,0.51725565]
[1769898512224,15.02719059,2417.5,2416.6,1.03451129]
[1769898512423,13.99306306,2417.5,2416.6,1.03451129]
[1769898512619,15.02719436,2417.5,2416.6,1.03451129]
[1769898513255,15.02719436,2417.5,2416.4,4.13804518]
[1769898514439,15.02719436,2417.5,2416.5,12.62877151]
[1769898514649,15.02719436,2417.5,2416.5,1.78014564]
[1769898515454,0.001,2417.3,2416.6,1.03451129]
[1769898515950,0.001,2417.3,2416.6,13.6632828]
[1769898516149,13.99406306,2417.3,2416.5,2.81467133]
[1769898517150,13.99406306,2417.3,2416.4,1.03456947]
[1769898517332,0.01267828,2417.2,2416.4,1.03456947]
[1769898517548,0.01267828,2417.2,2416.3,1.03463973]
[1769898517549,14.02809795,2417.1,2416.3,1.03463973]
[1769898519232,12.99380066,2417.1,2416.3,1.03463973]
[1769898519873,12.99380066,2417.1,2416.2,4.13872121]
[1769898521353,1.04696667,2417.2,2416.3,13.59091138]
[1769898521558,13.84163683,2417.2,2416.3,13.59091138]
[1769898521745,13.84163683,2417.2,2416.4,0.48979082]
[1769898522266,13.84163683,2417.2,2416.5,1.0345541]
[1769898523153,12.79467016,2417.2,2416.5,1.0345541]
[1769898524163,12.79467016,2417.2,2416.3,1.03463973]
[1769898525860,12.79467016,2417.2,2416.3,14.2271184]
[1769898526172,1.03523468,2417.3,2416.3,14.2271184]
[1769898526173,0.001,2417.3,2416.3,14.2271184]
[1769898526367,0.001,2417.3,2416.5,13.19247867]
[1769898527867,0.001,2417.1,2416.5,13.19247867]
[1769898528354,0.001,2417.1,2416.6,14.22698996]
[1769898529872,13.66267016,2417.8,2416.7,13.19247867]
[1769898530071,14.6966683,2417.8,2416.8,14.61517767]
[1769898530273,0.868,2417.8,2416.9,15.09386155]
[1769898532855,0.868,2417.8,2416.9,1.90138288]
[1769898532856,13.82867053,2417.8,2416.9,1.90138288]
[1769898533068,13.82867053,2417.8,2417.0,0.74616134]
[1769898533249,12.80734844,2417.6,2416.9,1.03438288]
[1769898535676,12.79467016,2417.6,2416.9,1.03438288]
[1769898536264,14.93880594,2417.9,2416.9,14.22686155]
[1769898536847,13.82865185,2417.9,2416.9,14.22686155]
[1769898537052,13.82865185,2417.9,2417.0,1.97872002]
[1769898537280,14.93880594,2417.9,2417.0,15.17119869]
[1769898537453,13.82865185,2417.9,2417.0,15.17119869]
[1769898538680,13.82865185,2417.9,2417.1,1.03429729]
[1769898540450,12.79467016,2417.9,2417.1,1.03539729]
[1769898540652,0.001,2417.7,2417.3,1.03421172]
[1769898542754,12.79567016,2417.7,2417.1,0.0011]
[1769898542964,12.79567016,2417.7,2417.1,1.03539556]
[1769898543160,12.79467016,2417.4,2416.9,0.0011]
[1769898543367,12.79467016,2417.2,2416.9,0.0011]
[1769898543592,12.79467016,2417.2,2416.6,1.03450706]
[1769898543885,0.01267828,2417.6,2417.0,1.0343213]
[1769898543886,12.79467016,2417.6,2417.0,1.0343213]
[1769898544087,0.89191063,2417.5,2417.0,1.0343213]
[1769898544264,12.79467016,2417.6,2416.9,4.13751591]
[1769898544467,0.89184651,2417.5,2417.0,1.03431315]
[1769898544787,0.868,2417.7,2416.8,13.19247867]
[1769898544980,0.868,2417.7,2416.7,6.7379202]
[1769898544981,13.68650539,2417.6,2416.7,6.7379202]
[1769898545180,13.68650539,2417.5,2416.7,6.7379202]
[1769898545371,12.79467016,2417.5,2416.7,6.7379202]
[1769898547797,1.9020441,2417.7,2416.7,20.33511165]
[1769898548091,13.63778943,2417.6,2416.7,20.33511165]
[1769898548401,0.89184172,2417.5,2416.7,20.33511165]
[1769898548783,13.63778943,2417.5,2416.7,5.00486928]
[1769898549090,12.74594771,2417.3,2416.7,1.03444608]
[1769898549274,13.63778943,2417.2,2416.5,0.867]
[1769898549477,12.74594771,2417.2,2416.5,0.867]
[1769898550495,13.78014068,2417.4,2416.5,14.46419145]
[1769898550695,0.89244948,2417.3,2416.5,14.46419145]
[1769898550867,1.98284969,2417.7,2416.5,14.46419145]
[1769898551068,0.89236477,2417.6,2416.5,14.46419145]
[1769898551262,0.89236477,2417.5,2416.8,14.63161713]
[1769898551495,0.868,2417.7,2416.8,14.63161713]
[1769898551676,0.8925517,2417.6,2416.8,14.63161713]
[1769898551871,0.8925517,2417.5,2416.8,14.63161713]
[1769898552079,1.90204794,2417.7,2416.8,17.07730728]
[1769898552281,0.89280198,2417.6,2416.8,17.07730728]
[1769898552474,0.89280198,2417.5,2416.8,17.07730728]
[1769898552795,0.868,2417.7,2416.8,17.07730728]
[1769898552993,0.89281461,2417.6,2416.8,17.07730728]
[1769898553195,0.89281461,2417.5,2417.0,1.03434009]
[1769898553373,0.868,2417.7,2417.0,1.03434009]
[1769898553575,0.001,2417.5,2417.0,1.03434009]
[1769898554786,0.001,2417.5,2417.0,14.63153154]
[1769898555191,0.8935412,2417.4,2417.0,1.03434009]
[1769898555393,0.001,2417.5,2417.0,1.03434009]
[1769898555574,0.89354094,2417.4,2417.0,1.03434009]
[1769898555785,0.001,2417.5,2417.0,1.03434009]
[1769898556102,0.89354889,2417.4,2417.0,1.03434009]
[1769898556283,0.001,2417.5,2417.0,1.03434009]
[1769898560603,1.11484969,2417.8,2417.0,14.63153154]
[1769898560804,15.25785028,2418.0,2417.0,14.63153154]
[1769898560805,1.11484969,2417.9,2417.0,14.63153154]
[1769898560998,14.89472643,2418.0,2417.1,13.59719145]
[1769898561508,1.11484969,2417.9,2417.2,1.0342545]
[1769898562309,14.89472643,2418.0,2417.2,1.0342545]
[1769898564389,1.47797354,2418.2,2417.4,13.59719145]
[1769898564390,1.11484969,2418.2,2417.4,13.59719145]
[1769898564604,1.11484969,2418.2,2417.5,15.75790126]
[1769898564808,12.74594771,2418.2,2417.5,2.16070981]
[1769898565709,12.74594771,2418.2,2417.6,1.03408338]
[1769898566210,1.39171062,2418.3,2417.6,16.72411413]
[1769898566508,1.39171062,2418.3,2417.6,14.63127483]
[1769898566705,0.27686093,2418.3,2417.6,14.63127483]
[1769898567098,0.001,2418.0,2417.6,14.63127483]
[1769898567788,0.27686093,2418.3,2417.8,1.03399784]
[1769898567985,0.27686093,2418.3,2417.8,2.99741687]
[1769898568409,0.27686093,2418.3,2417.8,16.59460832]
[1769898570590,12.74594771,2418.7,2417.8,16.59460832]
[1769898571804,1.033578,2418.8,2417.8,16.59460832]
[1769898572005,13.77952571,2418.8,2417.8,16.59460832]
[1769898572201,1.033578,2418.8,2418.0,13.59719145]
[1769898572396,13.77952571,2418.8,2418.1,0.867]
[1769898573525,0.2161011,2419.1,2418.3,13.59719145]
[1769898573705,0.2161011,2419.1,2418.5,13.59719145]
[1769898573903,12.74594771,2419.5,2418.6,14.63084728]
[1769898574299,0.21605345,2419.5,2418.8,13.59719145]
[1769898574516,0.21605345,2419.5,2418.7,7.14290663]
[1769898574517,0.21605345,2419.5,2418.9,14.46419145]
[1769898574724,12.74594771,2419.7,2419.0,7.14290663]
[1769898574913,12.74594771,2419.7,2419.1,2.16070981]
[1769898575426,12.74594771,2420.0,2419.1,15.75790126]
[1769898575614,13.24402434,2420.2,2419.1,15.75790126]
[1769898575817,13.24402434,2420.2,2418.9,0.867]
[1769898575818,13.24402434,2420.2,2419.4,1.03331404]
[1769898576021,13.24402434,2420.2,2419.4,1.90031404]
[1769898576022,0.49807663,2420.2,2419.4,1.90031404]
[1769898576325,0.49807663,2420.2,2419.4,15.49750549]
[1769898576531,0.28207221,2420.2,2419.4,15.49750549]
[1769898576712,0.28207221,2420.2,2419.5,15.56027074]
[1769898576908,0.21595797,2420.5,2419.6,13.59719145]
[1769898577109,12.74426068,2421.2,2419.6,13.33519735]
[1769898577335,4.1425217,2421.4,2419.8,13.33519735]
[1769898577336,0.21590981,2421.1,2419.8,13.33519735]
[1769898577519,0.21590981,2421.1,2420.0,13.33519735]
[1769898577830,0.21590981,2421.1,2420.2,13.33519735]
[1769898578129,0.21590981,2421.1,2420.3,14.20219735]
[1769898578335,0.867,2421.5,2420.3,14.20219735]
[1769898578704,1.24828793,2421.6,2420.3,14.20219735]
[1769898578705,0.2158837,2421.6,2420.3,14.20219735]
[1769898578905,12.74426068,2421.7,2420.5,13.33519735]
[1769898579232,12.74426068,2421.5,2420.2,13.33519735]
[1769898579414,12.74426068,2421.5,2420.3,14.20219735]
[1769898580115,12.74426068,2421.3,2420.0,17.46729592]
[1769898580318,12.74426068,2421.3,2420.3,0.867]
[1769898580514,12.74426068,2421.1,2420.1,1.03300686]
[1769898581329,12.74426068,2421.1,2420.0,1.90005673]
[1769898581536,13.26768144,2421.1,2420.0,1.90005673]
[1769898581711,13.26768144,2421.1,2419.7,0.0011]
[1769898581712,13.28035972,2420.9,2419.7,0.0011]
[1769898582121,13.26768144,2420.7,2419.7,1.03426282]
[1769898582318,13.26768144,2420.7,2419.7,0.0011]
[1769898582633,1.91139473,2420.8,2419.7,13.8292991]
[1769898582634,1.89871645,2420.8,2419.7,13.8292991]
[1769898582839,13.26768144,2420.6,2419.7,0.0011]
[1769898583010,0.01267828,2420.5,2419.7,0.0011]
[1769898583340,13.26768144,2420.4,2419.7,0.0011]
[1769898584220,13.26768144,2420.2,2419.7,0.0011]
[1769898585538,1.03275911,2420.7,2419.7,0.0011]
[1769898586329,13.26768144,2420.6,2419.7,0.0011]
[1769898587106,1.03275911,2420.7,2419.7,13.8292991]
[1769898587309,1.89874437,2420.8,2419.7,13.8292991]
[1769898587514,0.866,2420.8,2419.7,13.8292991]
[1769898587822,0.27652011,2421.4,2419.9,13.8281991]
[1769898588034,0.27652011,2421.4,2420.1,13.8281991]
[1769898588235,14.57666705,2421.4,2420.2,14.86117158]
[1769898588434,14.57666705,2421.4,2420.2,1.03297248]
[1769898590639,14.57666705,2421.4,2420.2,13.8281991]
[1769898590839,14.57666705,2421.4,2420.3,1.38281991]
[1769898592115,14.41020155,2421.4,2420.3,15.21101901]
[1769898592330,1.14252011,2421.4,2420.3,15.21101901]
[1769898592655,0.001,2421.2,2420.4,1.03288712]
[1769898592830,0.001,2421.2,2420.5,0.65472555]
[1769898594235,0.001,2421.2,2420.5,14.48292465]
[1769898595035,0.001,2421.2,2420.6,1.03280178]
[1769898595641,0.001,2421.2,2420.6,14.86100088]
[1769898596345,0.001,2421.2,2420.6,1.03280178]
[1769898596542,0.001,2421.2,2420.6,2.02779594]
[1769898599342,0.001,2421.2,2420.6,15.85599504]
[1769898599965,0.001,2421.2,2420.6,2.02779594]
[1769898602339,13.26868144,2421.2,2420.6,2.02779594]
[1769898602541,13.26868144,2421.2,2420.2,1.03295615]
[1769898602759,13.26868144,2421.2,2420.3,1.03289917]
[1769898602971,13.26868144,2421.2,2420.4,1.03288694]
[1769898603401,13.26868144,2421.2,2420.0,14.86125695]
[1769898603696,0.001,2421.2,2420.2,14.93292201]
[1769898604183,0.001,2421.2,2420.4,13.8281991]
[1769898604478,0.001,2421.2,2420.3,1.10472291]
[1769898604479,0.001,2421.2,2420.5,14.6941991]
[1769898604682,0.001,2421.2,2420.6,1.46941991]
[1769898604886,0.001,2421.2,2420.6,15.29761901]
[1769898605865,0.001,2421.2,2420.7,1.03275911]
[1769898608071,0.001,2421.2,2420.4,1.03286529]
[1769898608072,13.23159026,2421.2,2420.4,1.03286529]
[1769898608268,13.23059026,2421.1,2420.3,1.03290251]
[1769898608647,13.23059026,2421.1,2420.2,0.0011]
[1769898608853,0.001,2421.2,2419.7,14.98623951]
[1769898608854,13.24326854,2420.9,2419.7,0.0011]
[1769898609479,13.24326854,2420.9,2419.0,4.13378691]
[1769898609480,13.24326854,2420.5,2419.0,4.13378691]
[1769898610387,1.03282971,2420.6,2419.1,13.50504495]
[1769898610561,1.03282971,2420.6,2419.3,13.50504495]
[1769898610748,1.03282971,2420.6,2419.4,14.37104495]
[1769898611552,1.03282971,2420.6,2419.4,15.4748364]
[1769898611769,14.26337928,2420.7,2419.4,15.4748364]
[1769898611973,14.26337928,2420.7,2419.5,15.05252859]
[1769898612171,0.01267828,2421.0,2419.7,13.50504495]
[1769898612172,4.13072167,2420.9,2419.7,13.50504495]
[1769898612374,1.03267379,2420.9,2419.7,13.50504495]
[1769898612756,1.03261395,2421.1,2419.7,13.50504495]
[1769898612963,1.03261395,2421.1,2419.9,13.50504495]
[1769898613160,0.001,2421.2,2420.0,14.37104495]
[1769898613457,0.001,2421.2,2420.0,0.866]
[1769898613458,14.27682573,2421.2,2420.0,0.866]
[1769898613884,1.03355719,2421.2,2420.0,14.37104495]
[1769898614080,1.03355719,2421.2,2420.1,1.4371045]
[1769898614288,1.03355719,2421.2,2420.2,1.03297248]
[1769898617269,14.26414745,2421.2,2420.2,1.03297248]
[1769898617887,1.03355719,2421.2,2420.4,0.0011]
[1769898618091,0.001,2421.0,2420.4,0.0011]
[1769898621408,0.27652011,2421.4,2420.4,13.50614495]
[1769898621567,0.866,2421.5,2420.4,13.50614495]
[1769898621568,0.22854648,2421.9,2420.8,14.6088364]
[1769898621769,14.47870647,2421.9,2420.8,1.96979145]
[1769898622001,13.23059026,2421.8,2420.8,0.866]
[1769898622684,14.26291273,2421.8,2420.9,1.03267379]
[1769898622887,14.26291273,2421.8,2420.8,0.866]
[1769898623075,14.26291273,2421.8,2420.7,1.03273694]
[1769898623268,13.23059026,2421.6,2420.8,1.03271383]
[1769898623473,15.34473129,2421.9,2420.8,1.03271383]
[1769898625173,13.44645846,2421.9,2420.8,1.03271383]
[1769898625576,0.2158682,2421.9,2420.8,14.53775878]
[1769898625797,0.2158682,2421.9,2421.0,13.50504495]
[1769898627100,0.2158682,2421.9,2421.1,1.03258849]
[1769898631001,0.2158682,2421.9,2421.1,14.53763344]
[1769898632207,0.001,2421.7,2421.1,14.53763344]
[1769898632408,0.001,2421.7,2421.2,1.86690874]
[1769898632610,13.18059026,2423.2,2421.7,13.73861525]
[1769898632807,13.18059026,2423.2,2421.8,2.23986153]
[1769898632808,13.24326854,2422.9,2421.8,2.23986153]
[1769898633009,13.44637944,2423.1,2421.8,15.74490648]
[1769898633192,0.21578918,2423.1,2421.8,15.74490648]
[1769898633504,0.21578918,2423.1,2422.0,13.50504495]
[1769898633703,13.50652651,2423.4,2422.0,13.50504495]
[1769898633906,13.50652651,2423.4,2422.2,13.50504495]
[1769898634101,0.49167067,2423.4,2422.2,13.50504495]
[1769898634306,13.23059026,2423.3,2422.1,1.03216217]
[1769898634506,13.23059026,2423.3,2422.2,0.51608109]
[1769898635101,0.49167067,2423.4,2422.2,14.02112604]
[1769898635612,13.72226093,2423.4,2422.2,14.02112604]
[1769898635813,14.75387194,2423.4,2422.3,1.03207695]
[1769898636126,0.49167067,2423.4,2422.4,0.866]
[1769898636411,14.75387027,2423.4,2422.4,0.866]
[1769898636608,14.75387027,2423.4,2422.2,1.54817651]
[1769898636979,14.75387027,2423.4,2422.2,1.03209542]
[1769898638317,14.75387027,2423.4,2422.2,14.09546872]
[1769898638518,1.5232803,2423.4,2422.2,14.09546872]
[1769898639734,1.5232803,2423.4,2421.8,4.14115652]
[1769898639735,13.36850549,2423.3,2421.6,13.0633733]
[1769898639904,13.36850549,2423.1,2421.5,0.866]
[1769898640098,13.36850549,2423.1,2421.6,0.49957282]
[1769898641510,13.36850549,2423.1,2421.4,1.03246056]
[1769898641511,13.66493706,2422.9,2421.4,1.03246056]
[1769898641715,13.66493706,2422.7,2421.2,1.03253076]
[1769898641914,13.66493706,2422.3,2421.0,0.8661]
[1769898642220,13.66493706,2422.3,2421.1,0.00347737]
[1769898643416,13.66493706,2422.3,2421.1,13.14083131]
[1769898644216,1.03211956,2422.2,2421.2,1.03254584]
[1769898644396,1.03211956,2422.2,2421.3,1.83035605]
[1769898644592,14.69705662,2422.2,2421.3,1.83035605]
[1769898644791,14.69705662,2422.2,2421.2,1.03254584]
[1769898645019,14.69705662,2422.2,2421.1,4.13366075]
[1769898645020,14.69705662,2422.2,2421.1,1.03604664]
[1769898645209,14.69705662,2422.2,2421.1,0.00347737]
[1769898645723,14.69705662,2422.2,2421.1,1.03605557]
[1769898645922,14.69705662,2422.2,2421.1,0.00347737]
[1769898646623,13.66493706,2422.1,2421.1,0.00347737]
[1769898648209,14.69714184,2422.0,2421.1,0.00347737]
[1769898655232,14.69714184,2422.0,2420.8,0.0011]
[1769898655233,13.66493706,2421.8,2420.8,0.0011]
[1769898655432,14.53093706,2421.8,2420.8,0.0011]
[1769898655641,13.66493706,2421.6,2420.2,1.0329625]
[1769898656439,13.67761534,2421.6,2420.1,1.03409656]
[1769898656633,14.79246503,2421.6,2420.1,1.03409656]
[1769898656822,13.66493706,2421.4,2420.1,0.0011]
[1769898657034,13.67761534,2421.4,2420.1,0.0011]
[1769898657241,13.66493706,2421.4,2420.1,0.0011]
[1769898657845,13.66493706,2421.4,2420.6,0.0011]
[1769898659233,1.0325032,2421.3,2420.6,0.0011]
[1769898660528,14.69742886,2421.4,2420.6,0.0011]
[1769898660734,14.69740932,2421.4,2420.6,0.0011]
[1769898664538,14.69740932,2421.4,2420.1,0.0011]
[1769898664539,13.66493706,2421.2,2420.1,0.0011]
[1769898664762,13.66493706,2421.0,2420.1,0.0011]
[1769898665369,1.03267379,2420.9,2420.1,0.0011]
[1769898666639,14.69761085,2420.9,2420.1,0.0011]
[1769898666841,14.69761085,2420.9,2419.8,0.0011]
[1769898667181,13.69220871,2420.7,2419.8,0.0011]
[1769898667337,14.72509583,2420.4,2419.8,0.0011]
[1769898668032,14.72509583,2420.4,2418.5,1.10913188]
[1769898668033,13.70488699,2420.0,2418.9,1.03352576]
[1769898668232,0.01267828,2420.2,2418.9,1.03352576]
[1769898668233,13.69220871,2419.8,2419.0,1.033449]
[1769898668490,0.866,2419.9,2419.0,1.03345786]
[1769898668665,0.866,2419.9,2419.1,0.51675626]
[1769898668855,13.69220871,2420.1,2419.0,1.03348153]
[1769898669260,13.69220871,2420.1,2418.9,1.0334968]
[1769898669474,14.72526656,2420.0,2418.8,1.03357036]
[1769898670874,14.72526656,2420.0,2418.8,14.76247134]
[1769898671180,14.72526656,2420.0,2419.8,0.0011]
[1769898671483,14.72526656,2420.0,2419.0,1.03348491]
[1769898672057,1.03305785,2420.0,2419.0,14.76238589]
[1769898672391,1.03297248,2420.2,2419.0,14.76238589]
[1769898672694,14.72518119,2420.2,2419.0,14.76238589]
[1769898672878,14.72518119,2420.2,2419.1,2.0786014]
[1769898673681,14.72518119,2420.2,2419.1,1.03343968]
[1769898674389,14.72518119,2420.2,2419.0,1.03345229]
[1769898674703,14.72518119,2420.2,2419.0,1.03345444]
[1769898675258,14.72518119,2420.2,2419.1,1.03343855]
[1769898675487,14.72518119,2420.2,2419.0,1.03345819]
[1769898675666,13.69220871,2420.1,2419.0,0.5168604]
[1769898675865,13.69220871,2420.1,2418.8,14.76357134]
[1769898677696,14.72526656,2420.0,2418.8,14.76357134]
[1769898678278,14.72526656,2420.0,2418.8,1.03467036]
[1769898678995,13.69220871,2419.7,2418.8,0.0011]
[1769898679661,1.03322863,2419.6,2418.8,0.0011]
[1769898680988,14.72543734,2419.6,2418.8,0.0011]
[1769898683090,14.72543734,2419.6,2419.0,0.0011]
[1769898685070,13.69220871,2419.4,2419.0,0.0011]
[1769898686392,1.03335675,2419.3,2419.0,0.0011]
[1769898686774,14.72556546,2419.3,2419.0,0.0011]
[1769898687374,1.03335675,2419.3,2419.0,0.0011]
[1769898688505,17.82563573,2419.4,2419.0,0.0011]
[1769898689879,13.69220871,2419.3,2419.0,0.0011]
[1769898690198,17.82563573,2419.4,2419.0,0.0011]
[1769898692067,17.82563573,2419.4,2418.1,1.03384678]
[1769898692068,13.69220871,2419.1,2418.1,1.03384678]
[1769898692268,13.69220871,2419.1,2418.0,13.72890098]
[1769898692469,13.70488699,2418.9,2417.8,0.0011]
[1769898692671,14.72586454,2418.6,2417.8,0.0011]
[1769898692903,13.69220871,2418.5,2417.8,0.0011]
[1769898693401,13.69220871,2418.2,2417.4,0.0011]
[1769898693616,14.55820871,2418.2,2417.4,0.0011]
[1769898693793,13.69220871,2418.0,2417.4,0.0011]
[1769898694189,0.01267828,2418.1,2417.1,0.0011]
[1769898694190,13.69220871,2417.7,2417.1,0.0011]
[1769898694393,0.01267828,2417.9,2417.1,0.0011]
[1769898694394,1.90065583,2418.6,2417.4,14.76305993]
[1769898694698,14.73865699,2418.4,2417.5,2.9240927]
[1769898695008,1.90068662,2418.6,2417.7,13.72890098]
[1769898696100,15.59289533,2418.6,2417.6,0.0011]
[1769898696723,13.70488699,2418.4,2417.6,0.0011]
[1769898697015,13.69220871,2418.3,2417.6,0.0011]
[1769898698719,1.03382681,2418.2,2417.6,0.0011]
[1769898700899,14.33573732,2418.4,2417.6,0.0011]
[1769898702531,0.01267828,2418.3,2417.6,0.0011]
[1769898702719,13.27260346,2418.3,2417.6,0.0011]
[1769898702905,1.03382681,2418.2,2417.6,0.0011]
[1769898704132,13.25992518,2418.0,2417.4,0.0011]
[1769898704929,1.03395508,2417.9,2417.4,0.0011]
[1769898706826,14.12692518,2418.1,2417.4,0.0011]
[1769898706827,0.867,2418.1,2417.4,13.51728924]
[1769898706993,1.90187139,2418.1,2417.4,15.90315578]
[1769898707398,1.90188075,2418.1,2417.4,15.90315578]
[1769898707827,1.90188075,2418.1,2417.4,1.35282892]
[1769898708033,15.17448421,2418.1,2417.4,0.0011]
[1769898709309,13.27260346,2417.8,2417.4,0.0011]
[1769898709507,13.27260346,2417.8,2417.1,0.0011]
[1769898712030,1.04676166,2417.6,2417.1,0.0011]
[1769898713231,13.27260346,2417.4,2417.1,0.0011]
[1769898713633,0.01267828,2417.4,2417.1,0.0011]
[1769898714205,1.03421172,2417.3,2417.1,0.0011]
[1769898714941,18.27594068,2417.6,2417.1,0.0011]
[1769898714942,1.03408338,2417.6,2417.1,0.0011]
[1769898715628,1.03406558,2417.7,2417.1,0.0011]
[1769898715829,1.03490409,2418.1,2417.1,13.51728924]
[1769898716236,1.03490409,2418.1,2417.2,14.55044374]
[1769898718120,14.3066013,2417.8,2417.1,0.0011]
[1769898718319,0.01267828,2417.7,2417.1,0.0011]
[1769898718521,0.01267828,2417.7,2417.3,0.0011]
[1769898718844,0.01267828,2417.6,2417.3,0.0011]
[1769898719755,1.03497653,2417.9,2417.3,0.0011]
[1769898719939,0.001,2417.9,2417.3,0.0011]
[1769898720130,0.001,2417.9,2417.3,13.51728924]
[1769898720330,0.001,2417.9,2417.3,14.55146215]
[1769898720525,0.001,2417.9,2417.4,1.86884159]
[1769898720526,0.01367828,2417.9,2417.4,1.86884159]
[1769898721142,0.01367828,2417.9,2417.3,0.0011]
[1769898721521,0.01367828,2417.9,2417.3,1.03530883]
[1769898721720,1.11484969,2418.5,2417.5,13.51618924]
[1769898721913,2.51161098,2418.7,2417.5,13.51618924]
[1769898721914,1.04631572,2418.7,2417.5,13.51618924]
[1769898722113,1.04631572,2418.7,2417.7,13.51618924]
[1769898722319,1.11484969,2418.9,2417.9,13.51618924]
[1769898722623,0.87967828,2419.0,2418.1,13.51618924]
[1769898722624,0.867,2419.0,2418.1,13.51618924]
[1769898722818,1.91316449,2419.0,2418.1,13.51618924]
[1769898723122,0.01267828,2418.9,2418.1,13.51618924]
[1769898723560,1.03332503,2419.4,2418.1,13.51618924]
[1769898723763,1.04600331,2419.4,2418.1,13.51618924]
[1769898723933,1.04600331,2419.4,2418.3,13.51618924]
[1769898724279,1.04600331,2419.4,2418.4,1.03374131]
[1769898724437,1.04600331,2419.4,2418.5,13.51618924]
[1769898725550,0.01267828,2419.3,2418.5,13.51618924]
[1769898725941,13.27260346,2419.3,2418.3,1.0337637]
[1769898726156,13.27260346,2419.3,2418.2,1.4971208]
[1769898726157,0.01267828,2418.7,2418.2,1.4971208]
[1769898726378,0.01267828,2418.7,2417.6,2.38566343]
[1769898726379,0.01267828,2418.5,2417.6,2.38566343]
[1769898726672,0.01267828,2418.5,2417.6,1.03404451]
[1769898727170,0.01267828,2418.2,2417.5,1.0341236]
[1769898727369,12.7057694,2418.2,2417.3,0.0011]
[1769898727549,0.01267828,2417.9,2417.3,0.0011]
[1769898728356,1.04667612,2417.8,2417.3,0.0011]
[1769898728749,0.01267828,2417.7,2417.3,0.0011]
[1769898728941,1.04667612,2417.8,2417.3,0.0011]
[1769898729141,0.01267828,2417.7,2417.3,0.0011]
[1769898730160,0.01267828,2417.4,2417.1,0.0011]
[1769898730468,1.03421172,2417.3,2417.1,0.0011]
[1769898730971,1.04687876,2417.4,2417.3,0.0011]
[1769898732084,1.04687876,2417.4,2417.3,0.00113347]
[1769898733048,1.04687876,2417.4,2416.5,1.0356541]
[1769898733049,1.04687876,2417.4,2416.5,0.0011]
[1769898733250,0.01267828,2417.1,2416.5,0.0011]
[1769898734180,0.01267828,2416.7,2416.5,0.0011]
[1769898734343,0.01267828,2416.7,2416.2,0.0011]
[1769898734793,0.01267828,2416.5,2416.1,0.0011]
[1769898734975,0.01267828,2416.5,2416.0,0.0011]
[1769898734976,1.0472752,2416.4,2416.0,0.0011]
[1769898735158,1.0472752,2416.4,2415.8,0.0011]
[1769898735363,0.01267828,2416.3,2415.8,0.0011]
[1769898736045,1.03459692,2416.4,2415.8,0.0011]
[1769898737680,1.03434009,2417.0,2415.8,13.72159363]
[1769898739366,4.13736036,2417.1,2415.9,1.03481104]
[1769898739595,4.13736036,2417.1,2416.0,0.98934882]
[1769898740993,4.13736036,2417.1,2416.0,14.70984245]
[1769898741199,0.01267828,2417.7,2416.0,15.57684245]
[1769898741399,1.03404769,2417.7,2416.2,13.72049363]
[1769898741570,1.03404769,2417.7,2416.4,13.72049363]
[1769898742893,0.01367828,2418.0,2416.8,13.72049363]
[1769898742894,0.001,2418.0,2416.8,13.72049363]
[1769898743100,0.001,2418.0,2416.3,1.4755219]
[1769898743101,0.001,2418.0,2417.0,13.72049363]
[1769898743598,1.31467442,2418.3,2417.2,13.72049363]
[1769898743599,0.2808583,2418.3,2417.2,13.72049363]
[1769898743803,0.2808583,2418.3,2417.4,13.72049363]
[1769898744106,0.01267828,2419.1,2417.4,13.72049363]
[1769898744401,0.28119949,2418.9,2417.4,13.72049363]
[1769898744577,0.28119949,2418.9,2417.6,13.72049363]
[1769898744902,0.28119949,2418.9,2417.8,13.72049363]
[1769898745369,0.28119949,2418.9,2417.9,14.75444871]
[1769898746188,1.31473708,2418.9,2417.9,14.75444871]
[1769898746390,0.28119949,2418.9,2417.9,14.75444871]
[1769898748907,0.867,2419.6,2418.2,13.72049363]
[1769898749077,1.90025332,2419.6,2418.4,13.72049363]
[1769898749975,1.90025332,2419.6,2418.5,1.03369857]
[1769898750403,1.90025332,2419.6,2418.0,1.03390763]
[1769898750404,12.69309112,2419.3,2418.0,1.03390763]
[1769898750591,12.69309112,2419.1,2418.0,1.03390477]
[1769898750790,12.69309112,2419.1,2418.1,1.03386909]
[1769898751094,12.69309112,2419.1,2418.2,1.03381747]
[1769898751297,12.69309112,2419.1,2418.3,1.03378182]
[1769898751594,12.69309112,2419.4,2418.4,1.03374117]
[1769898752186,1.03335675,2419.3,2418.1,14.75436319]
[1769898753978,13.73912615,2419.3,2418.1,1.03386956]
[1769898754304,13.73912615,2419.3,2417.9,4.13581438]
[1769898754692,13.73912615,2419.3,2417.9,17.85630801]
[1769898754982,1.03434389,2419.4,2418.0,13.72049363]
[1769898755391,1.03434389,2419.4,2417.9,4.13581438]
[1769898755392,1.03434389,2419.4,2418.2,13.72049363]
[1769898755597,0.001,2419.4,2418.3,15.11590002]
[1769898755796,0.001,2419.4,2418.3,13.72049363]
[1769898756312,0.001,2419.4,2418.4,1.03374131]
[1769898756497,0.001,2419.4,2418.4,15.62123494]
[1769898756702,0.001,2419.4,2418.5,15.69611365]
[1769898758386,0.001,2419.4,2418.6,14.81794503]
[1769898759003,4.41451553,2419.8,2418.6,14.81794503]
[1769898759004,0.28191501,2419.8,2418.6,14.81794503]
[1769898759707,1.31506038,2419.8,2418.6,14.81794503]
[1769898759896,1.31506038,2419.8,2418.7,15.87710804]
[1769898760211,12.60393362,2419.6,2418.7,2.09281884]
[1769898760409,13.63720495,2419.5,2417.8,13.7842892]
[1769898760614,12.6166119,2419.3,2418.2,1.03378889]
[1769898760817,12.6166119,2419.3,2417.9,4.13566459]
[1769898760818,12.60393362,2418.9,2417.9,4.13566459]
[1769898760989,12.60393362,2418.9,2417.8,0.867]
[1769898760990,12.60393362,2418.9,2417.8,5.00294703]
[1769898761188,12.60393362,2418.9,2417.9,1.033934]
[1769898762226,0.01267828,2418.8,2417.8,0.867]
[1769898762397,13.47436525,2418.5,2417.4,1.03416894]
[1769898762597,13.47436525,2418.5,2417.3,5.61222487]
[1769898762598,13.47436525,2418.5,2417.3,2.50966698]
[1769898762799,13.47436525,2418.4,2417.3,1.03418789]
[1769898762997,0.01267828,2418.6,2417.4,13.01713519]
[1769898763207,0.01267828,2418.9,2417.6,12.78356489]